{"text_format":"1","workbook":"xlsx","n_sheets":9,"sheets":["Sales Tracker","Pending Sales Tracker","NameList","Performance","Partner Contact Info","Students Turned Away","Full Roster","Printable Sign-In Sheet","Confirmed Name Tags"],"not_rendered":{"charts":0,"images":0,"macros":0,"external_links":0,"defined_names":2,"comments":1,"pivot_tables":0},"unopened":[],"bounds":{"document_bytes":16777216,"sheet_cells":100000,"rows_first":2000,"rows_last":500,"rows_between":2000,"halvings":0,"cell_chars":16384,"cell_head_chars":4096},"cells_cut":0,"cells_raw":0,"read":"whole","date_system":"1900"}

{"sheet":"Sales Tracker","index":0,"n_rows":54,"n_cols":25,"rows_kept":54,"cut":false,"hidden":false,"merged":[[45,10,46,10]]}
["SALES REP","FIRST NAME","LAST NAME","PHONE","CHECK-IN EMAIL","SECONDARY EMAIL","PRODUCT NAME","PURCHASE PRICE","CC","ACH/CHECK","PAYMENT DETAILS","ZIP AMOUNT","TOTAL COLLECTED AT EVENT","REMAINING BALANCE","SWAP","INSTALLMENT LOANS","CREDIT STACKING","IHF COLLECTED","IHF FINANCED","TUITION NOTES AND  BALANCE DETAILS","HIGH HEAD COUNT","DPH","DPHC","Momentum Class 1","Momentum Class 2"]
["*** PLEASE DO NOT EDIT THIS ROW. IF NEW COLUMNS ARE NEEDED, ADD THEM AFTER THE LAST COLUMN. THX. ***",null,null,null,null,null,null,{"$f":"H47","v":0},{"$f":"I47","v":0},{"$f":"J47","v":0},null,{"$f":"L47","v":0},{"$f":"SUM(I2+L2)","v":0},{"$f":"N47","v":0},0,0,0,0,0,null,null,{"$f":"IFERROR((H2/U2),\"\")","v":""},{"$f":"IFERROR((M2/U2),\"\")","v":""}]
[null,null,null,null,null,null,null,null,null,null,null,null,{"$f":"I3+L3","v":0},{"$f":"IFERROR(IF(AND(ISNUMBER(SEARCH(\"IHF\", K3)), ISNUMBER(SEARCH(\"ZIP\", K3))), \"\", IF(ISNUMBER(SEARCH(\"IHF\", K3)), IF(ISNUMBER(SEARCH(\"Owed ZIP\", K3)), H3-I3, \"\"), H3-M3)),\"\")","v":0},{"$f":"IF(ISNUMBER(SEARCH(\"SWAP\",K3)),N3,\"\")","v":""},null,null,{"$f":"IF(ISNUMBER(SEARCH(\"IHF\",K3)),(I3+L3),\"\")","v":""},{"$f":"IF(ISNUMBER(SEARCH(\"IHF\",K3)),H3-I3-J3-L3,\"\")","v":""}]
[null,null,null,null,null,null,null,null,null,null,null,null,{"$f":"I4+L4","v":0},{"$f":"IFERROR(IF(AND(ISNUMBER(SEARCH(\"IHF\", K4)), ISNUMBER(SEARCH(\"ZIP\", K4))), \"\", IF(ISNUMBER(SEARCH(\"IHF\", K4)), IF(ISNUMBER(SEARCH(\"Owed ZIP\", K4)), H4-I4, \"\"), H4-M4)),\"\")","v":0},{"$f":"IF(ISNUMBER(SEARCH(\"SWAP\",K4)),N4,\"\")","v":""},null,null,{"$f":"IF(ISNUMBER(SEARCH(\"IHF\",K4)),(I4+L4),\"\")","v":""},{"$f":"IF(ISNUMBER(SEARCH(\"IHF\",K4)),H4-I4-J4-L4,\"\")","v":""}]
[null,null,null,null,null,null,null,null,null,null,null,null,0,0,"",null,null,"",""]
[null,null,null,null,null,null,null,null,null,null,null,null,0,0,"",null,null,"",""]
[null,null,null,null,null,null,null,null,null,null,null,null,0,0,"",null,null,"",""]
[null,null,null,null,null,null,null,null,null,null,null,null,0,0,"",null,null,"",""]
[null,null,null,null,null,null,null,null,null,null,null,null,0,0,"",null,null,"",""]
[null,null,null,null,null,null,null,null,null,null,null,null,0,0,"",null,null,"",""]
[null,null,null,null,null,null,null,null,null,null,null,null,0,0,"",null,null,"",""]
[null,null,null,null,null,null,null,null,null,null,null,null,0,0,"",null,null,"",""]
[null,null,null,null,null,null,null,null,null,null,null,null,0,0,"",null,null,"",""]
[null,null,null,null,null,null,null,null,null,null,null,null,0,0,"",null,null,"",""]
[null,null,null,null,null,null,null,null,null,null,null,null,0,0,"",null,null,"",""]
[null,null,null,null,null,null,null,null,null,null,null,null,0,0,"",null,null,"",""]
[null,null,null,null,null,null,null,null,null,null,null,null,0,0,"",null,null,"",""]
[null,null,null,null,null,null,null,null,null,null,null,null,0,0,"",null,null,"",""]
[null,null,null,null,null,null,null,null,null,null,null,null,0,0,"",null,null,"",""]
[null,null,null,null,null,null,null,null,null,null,null,null,0,0,"",null,null,"",""]
[null,null,null,null,null,null,null,null,null,null,null,null,0,0,"",null,null,"",""]
[null,null,null,null,null,null,null,null,null,null,null,null,0,0,"",null,null,"",""]
[null,null,null,null,null,null,null,null,null,null,null,null,0,0,"",null,null,"",""]
[null,null,null,null,null,null,null,null,null,null,null,null,0,0,"",null,null,"",""]
[null,null,null,null,null,null,null,null,null,null,null,null,0,0,"",null,null,"",""]
[null,null,null,null,null,null,null,null,null,null,null,null,0,0,"",null,null,"",""]
[null,null,null,null,null,null,null,null,null,null,null,null,0,0,"",null,null,"",""]
[null,null,null,null,null,null,null,null,null,null,null,null,0,0,"",null,null,"",""]
[null,null,null,null,null,null,null,null,null,null,null,null,0,0,"",null,null,"",""]
[null,null,null,null,null,null,null,null,null,null,null,null,0,0,"",null,null,"",""]
[null,null,null,null,null,null,null,null,null,null,null,null,0,0,"",null,null,"",""]
[null,null,null,null,null,null,null,null,null,null,null,null,0,0,"",null,null,"",""]
[null,null,null,null,null,null,null,null,null,null,null,null,0,0,"",null,null,"",""]
[null,null,null,null,null,null,null,null,null,null,null,null,0,0,"",null,null,"",""]
[null,null,null,null,null,null,null,null,null,null,null,null,0,0,"",null,null,"",""]
[null,null,null,null,null,null,null,null,null,null,null,null,0,0,"",null,null,"",""]
[null,null,null,null,null,null,null,null,null,null,null,null,0,0,"",null,null,"",""]
[null,null,null,null,null,null,null,null,null,null,null,null,0,0,"",null,null,"",""]
[null,null,null,null,null,null,null,null,null,null,null,null,0,0,"",null,null,"",""]
[null,null,null,null,null,null,null,null,null,null,null,null,0,0,"",null,null,"",""]
[null,null,null,null,null,null,null,null,null,null,null,null,0,0,"",null,null,"",""]
[null,null,null,null,null,null,null,null,null,null,null,null,0,0,"",null,null,"",""]
[null,null,null,null,null,null,null,null,null,null,null,null,0,0,"",null,null,"",""]
[null,null,null,null,null,null,null,null,null,null,null,null,0,0,"",null,null,"",""]
[null,null,null,null,null,null,null,null,null,null,null,null,0,0,"",null,null,"",""]
[null,null,null,null,null,null,null,"TOTAL SOLD","CC","ACH/CHECK",null,"ZIP","TOTAL COLLECTED","TOTAL REMANING","TOTAL SWAPS","INSTALLMENT LOANS","CREDIT STALKING","IHF COLLECTED ","IHF FINANCED"]
[null,null,null,null,null,null,null,{"$f":"SUM(H3:H45)","v":0},{"$f":"SUM(I3:I45)","v":0},{"$f":"SUM(J3:J45)","v":0},null,{"$f":"SUM(L3:L45)","v":0},0,0,{"$f":"SUM(O3:O45)","v":0},0,0,0,0]
[null,null,null,null,null,null,null,"HIGH HEAD COUNT","DPH","DPHC","COLLECTION RATIO"]
[null,null,null,null,null,null,null,null,{"$f":"IFERROR((H47/H49),\"\")","v":""},{"$f":"IFERROR((M47/H49),\"\")","v":""},{"$f":"IFERROR((M2/H2), \"\")","v":""}]
[]
[]
[null,null,null,"Please DO NOT TYPE OVER COLUMNS L,M,P, AND Q (FORMULAS)"]
[]
[null,null,null,"Please refer to this list below for Sales Reps (copy and paste as value) in the Sales Rep column (Column A). Please make sure to just include one first and last name per row. Thank you."]

{"sheet":"Pending Sales Tracker","index":1,"n_rows":54,"n_cols":25,"rows_kept":54,"cut":false,"hidden":false,"merged":[[45,10,46,10]]}
["SALES REP","FIRST NAME","LAST NAME","PHONE","CHECK-IN EMAIL","SECONDARY EMAIL","PRODUCT NAME","PURCHASE PRICE","CC","ACH/CHECK","PAYMENT DETAILS","ZIP AMOUNT","TOTAL COLLECTED AT EVENT","REMAINING BALANCE","SWAP","INSTALLMENT LOANS","CREDIT STACKING","IHF COLLECTED","IHF FINANCED","TUITION NOTES AND  BALANCE DETAILS","HIGH HEAD COUNT","DPH","DPHC","Momentum Class ","Momentum Class"]
["*** PLEASE DO NOT EDIT THIS ROW. IF NEW COLUMNS ARE NEEDED, ADD THEM AFTER THE LAST COLUMN. THX. ***",null,null,null,null,null,null,{"$f":"H47","v":0},{"$f":"I47","v":0},{"$f":"J47","v":0},null,{"$f":"L47","v":0},{"$f":"SUM(I2+L2)","v":0},{"$f":"N47","v":0},0,0,0,0,0,null,null,{"$f":"IFERROR((H2/U2),\"\")","v":""},{"$f":"IFERROR((M2/U2),\"\")","v":""}]
[null,null,null,null,null,null,null,null,null,null,null,null,{"$f":"I3+L3","v":0},{"$f":"IFERROR(IF(AND(ISNUMBER(SEARCH(\"IHF\", K3)), ISNUMBER(SEARCH(\"ZIP\", K3))), \"\", IF(ISNUMBER(SEARCH(\"IHF\", K3)), IF(ISNUMBER(SEARCH(\"Owed ZIP\", K3)), H3-I3, \"\"), H3-M3)),\"\")","v":0},{"$f":"IF(ISNUMBER(SEARCH(\"SWAP\",K3)),N3,\"\")","v":""},null,null,{"$f":"IF(ISNUMBER(SEARCH(\"IHF\",K3)),(I3+L3),\"\")","v":""},{"$f":"IF(ISNUMBER(SEARCH(\"IHF\",K3)),H3-I3-J3-L3,\"\")","v":""}]
[null,null,null,null,null,null,null,null,null,null,null,null,{"$f":"I4+L4","v":0},{"$f":"IFERROR(IF(AND(ISNUMBER(SEARCH(\"IHF\", K4)), ISNUMBER(SEARCH(\"ZIP\", K4))), \"\", IF(ISNUMBER(SEARCH(\"IHF\", K4)), IF(ISNUMBER(SEARCH(\"Owed ZIP\", K4)), H4-I4, \"\"), H4-M4)),\"\")","v":0},{"$f":"IF(ISNUMBER(SEARCH(\"SWAP\",K4)),N4,\"\")","v":""},null,null,{"$f":"IF(ISNUMBER(SEARCH(\"IHF\",K4)),(I4+L4),\"\")","v":""},{"$f":"IF(ISNUMBER(SEARCH(\"IHF\",K4)),H4-I4-J4-L4,\"\")","v":""}]
[null,null,null,null,null,null,null,null,null,null,null,null,0,0,"",null,null,"",""]
[null,null,null,null,null,null,null,null,null,null,null,null,0,0,"",null,null,"",""]
[null,null,null,null,null,null,null,null,null,null,null,null,0,0,"",null,null,"",""]
[null,null,null,null,null,null,null,null,null,null,null,null,0,0,"",null,null,"",""]
[null,null,null,null,null,null,null,null,null,null,null,null,0,0,"",null,null,"",""]
[null,null,null,null,null,null,null,null,null,null,null,null,0,0,"",null,null,"",""]
[null,null,null,null,null,null,null,null,null,null,null,null,0,0,"",null,null,"",""]
[null,null,null,null,null,null,null,null,null,null,null,null,0,0,"",null,null,"",""]
[null,null,null,null,null,null,null,null,null,null,null,null,0,0,"",null,null,"",""]
[null,null,null,null,null,null,null,null,null,null,null,null,0,0,"",null,null,"",""]
[null,null,null,null,null,null,null,null,null,null,null,null,0,0,"",null,null,"",""]
[null,null,null,null,null,null,null,null,null,null,null,null,0,0,"",null,null,"",""]
[null,null,null,null,null,null,null,null,null,null,null,null,0,0,"",null,null,"",""]
[null,null,null,null,null,null,null,null,null,null,null,null,0,0,"",null,null,"",""]
[null,null,null,null,null,null,null,null,null,null,null,null,0,0,"",null,null,"",""]
[null,null,null,null,null,null,null,null,null,null,null,null,0,0,"",null,null,"",""]
[null,null,null,null,null,null,null,null,null,null,null,null,0,0,"",null,null,"",""]
[null,null,null,null,null,null,null,null,null,null,null,null,0,0,"",null,null,"",""]
[null,null,null,null,null,null,null,null,null,null,null,null,0,0,"",null,null,"",""]
[null,null,null,null,null,null,null,null,null,null,null,null,0,0,"",null,null,"",""]
[null,null,null,null,null,null,null,null,null,null,null,null,0,0,"",null,null,"",""]
[null,null,null,null,null,null,null,null,null,null,null,null,0,0,"",null,null,"",""]
[null,null,null,null,null,null,null,null,null,null,null,null,0,0,"",null,null,"",""]
[null,null,null,null,null,null,null,null,null,null,null,null,0,0,"",null,null,"",""]
[null,null,null,null,null,null,null,null,null,null,null,null,0,0,"",null,null,"",""]
[null,null,null,null,null,null,null,null,null,null,null,null,0,0,"",null,null,"",""]
[null,null,null,null,null,null,null,null,null,null,null,null,0,0,"",null,null,"",""]
[null,null,null,null,null,null,null,null,null,null,null,null,0,0,"",null,null,"",""]
[null,null,null,null,null,null,null,null,null,null,null,null,0,0,"",null,null,"",""]
[null,null,null,null,null,null,null,null,null,null,null,null,0,0,"",null,null,"",""]
[null,null,null,null,null,null,null,null,null,null,null,null,0,0,"",null,null,"",""]
[null,null,null,null,null,null,null,null,null,null,null,null,0,0,"",null,null,"",""]
[null,null,null,null,null,null,null,null,null,null,null,null,0,0,"",null,null,"",""]
[null,null,null,null,null,null,null,null,null,null,null,null,0,0,"",null,null,"",""]
[null,null,null,null,null,null,null,null,null,null,null,null,0,0,"",null,null,"",""]
[null,null,null,null,null,null,null,null,null,null,null,null,0,0,"",null,null,"",""]
[null,null,null,null,null,null,null,null,null,null,null,null,0,0,"",null,null,"",""]
[null,null,null,null,null,null,null,null,null,null,null,null,0,0,"",null,null,"",""]
[null,null,null,null,null,null,null,null,null,null,null,null,0,0,"",null,null,"",""]
[null,null,null,null,null,null,null,null,null,null,null,null,0,0,"",null,null,"",""]
[null,null,null,null,null,null,null,null,null,null,null,null,0,0,"",null,null,"",""]
[null,null,null,null,null,null,null,"TOTAL SOLD","CC","ACH/CHECK",null,"ZIP","TOTAL COLLECTED","TOTAL REMANING","TOTAL SWAPS","INSTALLMENT LOANS","CREDIT STALKING","IHF COLLECTED ","IHF FINANCED"]
[null,null,null,null,null,null,null,{"$f":"SUM(H3:H45)","v":0},{"$f":"SUM(I3:I45)","v":0},{"$f":"SUM(J3:J45)","v":0},null,{"$f":"SUM(L3:L45)","v":0},0,0,{"$f":"SUM(O3:O45)","v":0},0,0,0,0]
[null,null,null,null,null,null,null,"HIGH HEAD COUNT","DPH","DPHC","COLLECTION RATIO"]
[null,null,null,null,null,null,null,null,{"$f":"IFERROR((H47/H49),\"\")","v":""},{"$f":"IFERROR((M47/H49),\"\")","v":""},{"$f":"IFERROR((M2/H2), \"\")","v":""}]
[]
[]
[null,null,null,"Please DO NOT TYPE OVER COLUMNS L,M,P, AND Q (FORMULAS)"]
[]
[null,null,null,"Please refer to this list below for Sales Reps (copy and paste as value) in the Sales Rep column (Column A). Please make sure to just include one first and last name per row. Thank you."]

{"sheet":"NameList","index":2,"n_rows":7,"n_cols":1,"rows_kept":7,"cut":false,"hidden":true,"merged":[]}
["ZIP"]
["CHECK"]
["ACH"]
["CC"]
["SWAP"]
["IHF"]
["CASH"]

{"sheet":"Performance","index":3,"n_rows":55,"n_cols":8,"rows_kept":55,"cut":false,"hidden":false,"merged":[]}
["Coach","APPOINTMENTS","ENROLLMENTS","CLOSE RATIO","PURCHASE PRICE","$ PER APPT (DPA)","TOTAL COLLECTED AT EVENT ","$ PER APPT COLLECTED (DPAC)"]
[null,null,{"$f":"COUNTIF('Sales Tracker'!A:A,A2)","v":0},{"$f":"IFERROR(C2/B2,\" \")","v":" "},{"$f":"SUMIF('Sales Tracker'!$A:$A,A2,'Sales Tracker'!$H:$H)","v":0},{"$f":"IFERROR(E2/B2,\" \")","v":" "},{"$f":"SUMIF('Sales Tracker'!$A:$A,A2,'Sales Tracker'!$M:$M)","v":0},{"$f":"IFERROR(G2/B2,\" \")","v":" "}]
[null,null,{"$f":"COUNTIF('Sales Tracker'!A:A,A3)","v":0}," ",{"$f":"SUMIF('Sales Tracker'!$A:$A,A3,'Sales Tracker'!$H:$H)","v":0}," ",{"$f":"SUMIF('Sales Tracker'!$A:$A,A3,'Sales Tracker'!$M:$M)","v":0},{"$f":"IFERROR(G3/B3,\" \")","v":" "}]
[null,null,{"$f":"COUNTIF('Sales Tracker'!A:A,A4)","v":0}," ",{"$f":"SUMIF('Sales Tracker'!$A:$A,A4,'Sales Tracker'!$H:$H)","v":0}," ",{"$f":"SUMIF('Sales Tracker'!$A:$A,A4,'Sales Tracker'!$M:$M)","v":0}," "]
[null,null,{"$f":"COUNTIF('Sales Tracker'!A:A,A5)","v":0}," ",{"$f":"SUMIF('Sales Tracker'!$A:$A,A5,'Sales Tracker'!$H:$H)","v":0}," ",{"$f":"SUMIF('Sales Tracker'!$A:$A,A5,'Sales Tracker'!$M:$M)","v":0}," "]
[null,null,{"$f":"COUNTIF('Sales Tracker'!A:A,A6)","v":0}," ",{"$f":"SUMIF('Sales Tracker'!$A:$A,A6,'Sales Tracker'!$H:$H)","v":0}," ",{"$f":"SUMIF('Sales Tracker'!$A:$A,A6,'Sales Tracker'!$M:$M)","v":0}," "]
[null,null,{"$f":"COUNTIF('Sales Tracker'!A:A,A7)","v":0}," ",{"$f":"SUMIF('Sales Tracker'!$A:$A,A7,'Sales Tracker'!$H:$H)","v":0}," ",{"$f":"SUMIF('Sales Tracker'!$A:$A,A7,'Sales Tracker'!$M:$M)","v":0}," "]
[null,null,{"$f":"COUNTIF('Sales Tracker'!A:A,A8)","v":0}," ",{"$f":"SUMIF('Sales Tracker'!$A:$A,A8,'Sales Tracker'!$H:$H)","v":0}," ",{"$f":"SUMIF('Sales Tracker'!$A:$A,A8,'Sales Tracker'!$M:$M)","v":0}," "]
[null,null,{"$f":"COUNTIF('Sales Tracker'!A:A,A9)","v":0}," ",{"$f":"SUMIF('Sales Tracker'!$A:$A,A9,'Sales Tracker'!$H:$H)","v":0}," ",{"$f":"SUMIF('Sales Tracker'!$A:$A,A9,'Sales Tracker'!$M:$M)","v":0}," "]
[null,null,{"$f":"COUNTIF('Sales Tracker'!A:A,A10)","v":0}," ",{"$f":"SUMIF('Sales Tracker'!$A:$A,A10,'Sales Tracker'!$H:$H)","v":0}," ",{"$f":"SUMIF('Sales Tracker'!$A:$A,A10,'Sales Tracker'!$M:$M)","v":0}," "]
[null,null,{"$f":"COUNTIF('Sales Tracker'!A:A,A11)","v":0}," ",{"$f":"SUMIF('Sales Tracker'!$A:$A,A11,'Sales Tracker'!$H:$H)","v":0}," ",{"$f":"SUMIF('Sales Tracker'!$A:$A,A11,'Sales Tracker'!$M:$M)","v":0}," "]
[null,null,{"$f":"COUNTIF('Sales Tracker'!A:A,A12)","v":0}," ",{"$f":"SUMIF('Sales Tracker'!$A:$A,A12,'Sales Tracker'!$H:$H)","v":0}," ",{"$f":"SUMIF('Sales Tracker'!$A:$A,A12,'Sales Tracker'!$M:$M)","v":0}," "]
[null,null,{"$f":"COUNTIF('Sales Tracker'!A:A,A13)","v":0}," ",{"$f":"SUMIF('Sales Tracker'!$A:$A,A13,'Sales Tracker'!$H:$H)","v":0}," ",{"$f":"SUMIF('Sales Tracker'!$A:$A,A13,'Sales Tracker'!$M:$M)","v":0}," "]
[null,null,{"$f":"COUNTIF('Sales Tracker'!A:A,A14)","v":0}," ",{"$f":"SUMIF('Sales Tracker'!$A:$A,A14,'Sales Tracker'!$H:$H)","v":0}," ",{"$f":"SUMIF('Sales Tracker'!$A:$A,A14,'Sales Tracker'!$M:$M)","v":0}," "]
[null,null,{"$f":"COUNTIF('Sales Tracker'!A:A,A15)","v":0}," ",{"$f":"SUMIF('Sales Tracker'!$A:$A,A15,'Sales Tracker'!$H:$H)","v":0}," ",{"$f":"SUMIF('Sales Tracker'!$A:$A,A15,'Sales Tracker'!$M:$M)","v":0}," "]
[null,null,{"$f":"COUNTIF('Sales Tracker'!A:A,A16)","v":0}," ",{"$f":"SUMIF('Sales Tracker'!$A:$A,A16,'Sales Tracker'!$H:$H)","v":0}," ",{"$f":"SUMIF('Sales Tracker'!$A:$A,A16,'Sales Tracker'!$M:$M)","v":0}," "]
[null,null,{"$f":"COUNTIF('Sales Tracker'!A:A,A17)","v":0}," ",{"$f":"SUMIF('Sales Tracker'!$A:$A,A17,'Sales Tracker'!$H:$H)","v":0}," ",{"$f":"SUMIF('Sales Tracker'!$A:$A,A17,'Sales Tracker'!$M:$M)","v":0}," "]
[null,null,{"$f":"COUNTIF('Sales Tracker'!A:A,A18)","v":0}," ",{"$f":"SUMIF('Sales Tracker'!$A:$A,A18,'Sales Tracker'!$H:$H)","v":0}," ",{"$f":"SUMIF('Sales Tracker'!$A:$A,A18,'Sales Tracker'!$M:$M)","v":0}," "]
[null,null,{"$f":"COUNTIF('Sales Tracker'!A:A,A19)","v":0}," ",{"$f":"SUMIF('Sales Tracker'!$A:$A,A19,'Sales Tracker'!$H:$H)","v":0}," ",{"$f":"SUMIF('Sales Tracker'!$A:$A,A19,'Sales Tracker'!$M:$M)","v":0}," "]
[null,null,{"$f":"COUNTIF('Sales Tracker'!A:A,A20)","v":0}," ",{"$f":"SUMIF('Sales Tracker'!$A:$A,A20,'Sales Tracker'!$H:$H)","v":0}," ",{"$f":"SUMIF('Sales Tracker'!$A:$A,A20,'Sales Tracker'!$M:$M)","v":0}," "]
[null,null,{"$f":"COUNTIF('Sales Tracker'!A:A,A21)","v":0}," ",{"$f":"SUMIF('Sales Tracker'!$A:$A,A21,'Sales Tracker'!$H:$H)","v":0}," ",{"$f":"SUMIF('Sales Tracker'!$A:$A,A21,'Sales Tracker'!$M:$M)","v":0}," "]
[null,null,{"$f":"COUNTIF('Sales Tracker'!A:A,A22)","v":0}," ",{"$f":"SUMIF('Sales Tracker'!$A:$A,A22,'Sales Tracker'!$H:$H)","v":0}," ",{"$f":"SUMIF('Sales Tracker'!$A:$A,A22,'Sales Tracker'!$M:$M)","v":0}," "]
[null,null,{"$f":"COUNTIF('Sales Tracker'!A:A,A23)","v":0}," ",{"$f":"SUMIF('Sales Tracker'!$A:$A,A23,'Sales Tracker'!$H:$H)","v":0}," ",{"$f":"SUMIF('Sales Tracker'!$A:$A,A23,'Sales Tracker'!$M:$M)","v":0}," "]
[null,null,{"$f":"COUNTIF('Sales Tracker'!A:A,A24)","v":0}," ",{"$f":"SUMIF('Sales Tracker'!$A:$A,A24,'Sales Tracker'!$H:$H)","v":0}," ",{"$f":"SUMIF('Sales Tracker'!$A:$A,A24,'Sales Tracker'!$M:$M)","v":0}," "]
[null,null,{"$f":"COUNTIF('Sales Tracker'!A:A,A25)","v":0}," ",{"$f":"SUMIF('Sales Tracker'!$A:$A,A25,'Sales Tracker'!$H:$H)","v":0}," ",{"$f":"SUMIF('Sales Tracker'!$A:$A,A25,'Sales Tracker'!$M:$M)","v":0}," "]
[null,null,{"$f":"COUNTIF('Sales Tracker'!A:A,A26)","v":0}," ",{"$f":"SUMIF('Sales Tracker'!$A:$A,A26,'Sales Tracker'!$H:$H)","v":0}," ",{"$f":"SUMIF('Sales Tracker'!$A:$A,A26,'Sales Tracker'!$M:$M)","v":0}," "]
[null,null,{"$f":"COUNTIF('Sales Tracker'!A:A,A27)","v":0}," ",{"$f":"SUMIF('Sales Tracker'!$A:$A,A27,'Sales Tracker'!$H:$H)","v":0}," ",{"$f":"SUMIF('Sales Tracker'!$A:$A,A27,'Sales Tracker'!$M:$M)","v":0}," "]
[null,null,{"$f":"COUNTIF('Sales Tracker'!A:A,A28)","v":0}," ",{"$f":"SUMIF('Sales Tracker'!$A:$A,A28,'Sales Tracker'!$H:$H)","v":0}," ",{"$f":"SUMIF('Sales Tracker'!$A:$A,A28,'Sales Tracker'!$M:$M)","v":0}," "]
[null,null,{"$f":"COUNTIF('Sales Tracker'!A:A,A29)","v":0}," ",{"$f":"SUMIF('Sales Tracker'!$A:$A,A29,'Sales Tracker'!$H:$H)","v":0}," ",{"$f":"SUMIF('Sales Tracker'!$A:$A,A29,'Sales Tracker'!$M:$M)","v":0}," "]
[null,null,{"$f":"COUNTIF('Sales Tracker'!A:A,A30)","v":0}," ",{"$f":"SUMIF('Sales Tracker'!$A:$A,A30,'Sales Tracker'!$H:$H)","v":0}," ",{"$f":"SUMIF('Sales Tracker'!$A:$A,A30,'Sales Tracker'!$M:$M)","v":0}," "]
[null,null,{"$f":"COUNTIF('Sales Tracker'!A:A,A31)","v":0}," ",{"$f":"SUMIF('Sales Tracker'!$A:$A,A31,'Sales Tracker'!$H:$H)","v":0}," ",{"$f":"SUMIF('Sales Tracker'!$A:$A,A31,'Sales Tracker'!$M:$M)","v":0}," "]
[null,null,{"$f":"COUNTIF('Sales Tracker'!A:A,A32)","v":0}," ",{"$f":"SUMIF('Sales Tracker'!$A:$A,A32,'Sales Tracker'!$H:$H)","v":0}," ",{"$f":"SUMIF('Sales Tracker'!$A:$A,A32,'Sales Tracker'!$M:$M)","v":0}," "]
[null,null,{"$f":"COUNTIF('Sales Tracker'!A:A,A33)","v":0}," ",{"$f":"SUMIF('Sales Tracker'!$A:$A,A33,'Sales Tracker'!$H:$H)","v":0}," ",{"$f":"SUMIF('Sales Tracker'!$A:$A,A33,'Sales Tracker'!$M:$M)","v":0}," "]
[null,null,{"$f":"COUNTIF('Sales Tracker'!A:A,A34)","v":0},{"$f":"IFERROR(C34/B34,\" \")","v":" "},{"$f":"SUMIF('Sales Tracker'!$A:$A,A34,'Sales Tracker'!$H:$H)","v":0},{"$f":"IFERROR(E34/B34,\" \")","v":" "},{"$f":"SUMIF('Sales Tracker'!$A:$A,A34,'Sales Tracker'!$M:$M)","v":0},{"$f":"IFERROR(G34/B34,\" \")","v":" "}]
[null,null,{"$f":"COUNTIF('Sales Tracker'!A:A,A35)","v":0}," ",{"$f":"SUMIF('Sales Tracker'!$A:$A,A35,'Sales Tracker'!$H:$H)","v":0}," ",{"$f":"SUMIF('Sales Tracker'!$A:$A,A35,'Sales Tracker'!$M:$M)","v":0}," "]
[null,null,{"$f":"COUNTIF('Sales Tracker'!A:A,A36)","v":0}," ",{"$f":"SUMIF('Sales Tracker'!$A:$A,A36,'Sales Tracker'!$H:$H)","v":0}," ",{"$f":"SUMIF('Sales Tracker'!$A:$A,A36,'Sales Tracker'!$M:$M)","v":0}," "]
[null,null,{"$f":"COUNTIF('Sales Tracker'!A:A,A37)","v":0}," ",{"$f":"SUMIF('Sales Tracker'!$A:$A,A37,'Sales Tracker'!$H:$H)","v":0}," ",{"$f":"SUMIF('Sales Tracker'!$A:$A,A37,'Sales Tracker'!$M:$M)","v":0}," "]
[null,null,{"$f":"COUNTIF('Sales Tracker'!A:A,A38)","v":0}," ",{"$f":"SUMIF('Sales Tracker'!$A:$A,A38,'Sales Tracker'!$H:$H)","v":0}," ",{"$f":"SUMIF('Sales Tracker'!$A:$A,A38,'Sales Tracker'!$M:$M)","v":0}," "]
[null,null,{"$f":"COUNTIF('Sales Tracker'!A:A,A39)","v":0}," ",{"$f":"SUMIF('Sales Tracker'!$A:$A,A39,'Sales Tracker'!$H:$H)","v":0}," ",{"$f":"SUMIF('Sales Tracker'!$A:$A,A39,'Sales Tracker'!$M:$M)","v":0}," "]
[null,null,{"$f":"COUNTIF('Sales Tracker'!A:A,A40)","v":0}," ",{"$f":"SUMIF('Sales Tracker'!$A:$A,A40,'Sales Tracker'!$H:$H)","v":0}," ",{"$f":"SUMIF('Sales Tracker'!$A:$A,A40,'Sales Tracker'!$M:$M)","v":0}," "]
[null,null,{"$f":"COUNTIF('Sales Tracker'!A:A,A41)","v":0}," ",{"$f":"SUMIF('Sales Tracker'!$A:$A,A41,'Sales Tracker'!$H:$H)","v":0}," ",{"$f":"SUMIF('Sales Tracker'!$A:$A,A41,'Sales Tracker'!$M:$M)","v":0}," "]
[null,null,{"$f":"COUNTIF('Sales Tracker'!A:A,A42)","v":0}," ",{"$f":"SUMIF('Sales Tracker'!$A:$A,A42,'Sales Tracker'!$H:$H)","v":0}," ",{"$f":"SUMIF('Sales Tracker'!$A:$A,A42,'Sales Tracker'!$M:$M)","v":0}," "]
[null,null,{"$f":"COUNTIF('Sales Tracker'!A:A,A43)","v":0}," ",{"$f":"SUMIF('Sales Tracker'!$A:$A,A43,'Sales Tracker'!$H:$H)","v":0}," ",{"$f":"SUMIF('Sales Tracker'!$A:$A,A43,'Sales Tracker'!$M:$M)","v":0}," "]
[null,null,{"$f":"COUNTIF('Sales Tracker'!A:A,A44)","v":0}," ",{"$f":"SUMIF('Sales Tracker'!$A:$A,A44,'Sales Tracker'!$H:$H)","v":0}," ",{"$f":"SUMIF('Sales Tracker'!$A:$A,A44,'Sales Tracker'!$M:$M)","v":0}," "]
[null,null,{"$f":"COUNTIF('Sales Tracker'!A:A,A45)","v":0}," ",{"$f":"SUMIF('Sales Tracker'!$A:$A,A45,'Sales Tracker'!$H:$H)","v":0}," ",{"$f":"SUMIF('Sales Tracker'!$A:$A,A45,'Sales Tracker'!$M:$M)","v":0}," "]
[null,null,{"$f":"COUNTIF('Sales Tracker'!A:A,A46)","v":0}," ",{"$f":"SUMIF('Sales Tracker'!$A:$A,A46,'Sales Tracker'!$H:$H)","v":0}," ",{"$f":"SUMIF('Sales Tracker'!$A:$A,A46,'Sales Tracker'!$M:$M)","v":0}," "]
[null,null,{"$f":"COUNTIF('Sales Tracker'!A:A,A47)","v":0}," ",{"$f":"SUMIF('Sales Tracker'!$A:$A,A47,'Sales Tracker'!$H:$H)","v":0}," ",{"$f":"SUMIF('Sales Tracker'!$A:$A,A47,'Sales Tracker'!$M:$M)","v":0}," "]
[null,null,{"$f":"COUNTIF('Sales Tracker'!A:A,A48)","v":0}," ",{"$f":"SUMIF('Sales Tracker'!$A:$A,A48,'Sales Tracker'!$H:$H)","v":0}," ",{"$f":"SUMIF('Sales Tracker'!$A:$A,A48,'Sales Tracker'!$M:$M)","v":0}," "]
[null,null,{"$f":"COUNTIF('Sales Tracker'!A:A,A49)","v":0}," ",{"$f":"SUMIF('Sales Tracker'!$A:$A,A49,'Sales Tracker'!$H:$H)","v":0}," ",{"$f":"SUMIF('Sales Tracker'!$A:$A,A49,'Sales Tracker'!$M:$M)","v":0}," "]
[null,null,{"$f":"COUNTIF('Sales Tracker'!A:A,A50)","v":0}," ",{"$f":"SUMIF('Sales Tracker'!$A:$A,A50,'Sales Tracker'!$H:$H)","v":0}," ",{"$f":"SUMIF('Sales Tracker'!$A:$A,A50,'Sales Tracker'!$M:$M)","v":0}," "]
[null,null,{"$f":"COUNTIF('Sales Tracker'!A:A,A51)","v":0}," ",{"$f":"SUMIF('Sales Tracker'!$A:$A,A51,'Sales Tracker'!$H:$H)","v":0}," ",{"$f":"SUMIF('Sales Tracker'!$A:$A,A51,'Sales Tracker'!$M:$M)","v":0}," "]
[null,null,{"$f":"COUNTIF('Sales Tracker'!A:A,A52)","v":0}," ",{"$f":"SUMIF('Sales Tracker'!$A:$A,A52,'Sales Tracker'!$H:$H)","v":0}," ",{"$f":"SUMIF('Sales Tracker'!$A:$A,A52,'Sales Tracker'!$M:$M)","v":0}," "]
[null,null,{"$f":"COUNTIF('Sales Tracker'!A:A,A53)","v":0}," ",{"$f":"SUMIF('Sales Tracker'!$A:$A,A53,'Sales Tracker'!$H:$H)","v":0}," ",{"$f":"SUMIF('Sales Tracker'!$A:$A,A53,'Sales Tracker'!$M:$M)","v":0}," "]
[null,null,{"$f":"COUNTIF('Sales Tracker'!A:A,A54)","v":0}," ",{"$f":"SUMIF('Sales Tracker'!$A:$A,A54,'Sales Tracker'!$H:$H)","v":0}," ",{"$f":"SUMIF('Sales Tracker'!$A:$A,A54,'Sales Tracker'!$M:$M)","v":0}," "]
[null,null,{"$f":"COUNTIF('Sales Tracker'!A:A,A55)","v":0}," ",{"$f":"SUMIF('Sales Tracker'!$A:$A,A55,'Sales Tracker'!$H:$H)","v":0}," ",{"$f":"SUMIF('Sales Tracker'!$A:$A,A55,'Sales Tracker'!$M:$M)","v":0}," "]

{"sheet":"Partner Contact Info","index":4,"n_rows":1,"n_cols":6,"rows_kept":1,"cut":false,"hidden":false,"merged":[]}
["Partner First Name","Partner Last Name","Partner Email","Phone Number","Linked to Buyer","Misc. Details"]

{"sheet":"Students Turned Away","index":5,"n_rows":1,"n_cols":3,"rows_kept":1,"cut":false,"hidden":false,"merged":[]}
["Name","Phone","Notes"]

{"sheet":"Full Roster","index":6,"n_rows":291,"n_cols":10,"rows_kept":291,"cut":false,"hidden":false,"merged":[]}
["First Name","Last Name","Email-TAKE ATTENDANCE HERE","Secondary Email","Phone","Day 1","Day 2","Day 3","Primary","Guest Of"]
["Mary Jane","Aguilar","mjj.aguilar@live.com",null,"(602) 782-0305",null,null,null,"Yes"]
["Ezequiel","Aguirre","zareze@gmail.com",null,"(602) 430-2136",null,null,null,"Yes"]
["Rabecca","Akatujuna","akatujuna24@gmail.com",null,"(747) 287-8930",null,null,null,null,"Muhumuza, Peter"]
["Ramon","Allamirano",null,null,"(602) 799-8969",null,null,null,null,"Lechuga, rebekah"]
["Deanie","Anderson","dla247@icloud.com",null,"(480) 703-4327",null,null,null,"Yes"]
["James","Anderson","jimrodeo1@hotmail.com",null,"(480) 703-4331",null,null,null,null,"Anderson, Deanie"]
["Phyllis","Anderson","phyllisanderson5.7@gmail.com",null,"(734) 686-0033",null,null,null,"Yes"]
["Sophia","Archer","soarch22@protonmail.com",null,"(412) 841-3759",null,null,null,"Yes"]
["Mariah","Armenta","mariah.armenta0352@gmail.com",null,"(602) 710-8006",null,null,null,"Yes"]
["Talia","Arnaud","taliachynel@gmail.com",null,"(602) 284-6400",null,null,null,null,"McLachlan, Bianca"]
["Patricia","Arreola","patriciaarreola08@gmail.com",null,"(480) 628-7188",null,null,null,"Yes"]
["David","Arreola-Leyra","dsaleyva354@gmail.com",null,null,null,null,null,null,"Arreola, Patricia"]
["Bridget","Bachicha"," ",null,null,null,null,null,null,"Melden, Cyndi"]
["Hailey","Bachicha"," ",null,"(520) 312-7788",null,null,null,null,"Kibbett, Margaret"]
["John","Baker","john_baker_10@yahoo.com",null,null,null,null,null,null,"Baker, Kari"]
["Kari","Baker","karibaker2023@gmail.com",null,"(602) 740-4483",null,null,null,"Yes"]
["Brittany","Benfield","82babs@gmail.com",null,"(623) 556-7493",null,null,null,"Yes"]
["Sarah","Bennett","sarahbennett848@gmail.com",null,"(480) 421-8327",null,null,null,"Yes"]
["Madelyn","Beraolt",null,null,"(623) 277-0616",null,null,null,"Yes"]
["Fidele","Biganiro","fidel.biganiro@gmail.com",null,"(602) 500-6103",null,null,null,"Yes"]
["Pamela","Black","yellojacket88@gmail.com",null,"(818) 270-7119",null,null,null,"Yes"]
["Roberta","Bledsae","robertabledsae@msn.com",null,"(480) 516-4007",null,null,null,"Yes"]
["Monica","Bodoh","monicamarie1234@icloud.com",null,"(608) 385-0968",null,null,null,"Yes"]
["Andrew","Bolton","drewbolton@me.com ",null,"(408) 650-1596",null,null,null,null,"Calderon, Laura"]
["Jeff","Bonner","jbonner_bbb@yahoo.com",null,"(832) 231-1802",null,null,null,null,"Bonner, Tina"]
["Tina","Bonner","ladytlbonner@gmail.com",null,"(832) 419-7147",null,null,null,"Yes"]
["Elizabeth","Borneman","eborne01@gmail.com",null,"(602) 476-9270",null,null,null,"Yes"]
["Jerry","Borneman","Dupe Primary",null,"(480) 848-2860",null,null,null,null,"Borneman , Elizabeth "]
["David","Braswell","dbraswell1@cox.net",null,"(602) 524-5704",null,null,null,"Yes"]
["Rhonda","Braswell","rbraswell@cox.net",null,"(602) 432-2127",null,null,null,null,"Braswell, David"]
["Rhonda","Brewer","brewerrhonda9@gmail.com",null,"(480) 536-1226",null,null,null,null,"Bledsae, Roberta"]
["Brooke","Brown","thebutterflytouch@gmail.com",null,"(480) 628-8540",null,null,null,"Yes"]
["Celeste","Bryson","celestehbryson@yahoo.com",null,"(302) 753-1259",null,null,null,null,"Bryson, Michael"]
["Michael","Bryson","mikenbryson@yahoo.com",null,"(302) 373-8904",null,null,null,"Yes"]
["Martina","Buelra","buelramartina67@gmail.com",null,"(480) 278-5312",null,null,null,null,"Rummel, Angela"]
["Antoinette","Bushanam","nbrblincoln@gmail.com",null,"(480) 258-0052",null,null,null,"Yes"]
["Theo","Bushanam","Theo.Bushanam@gmail.com",null,"(480) 258-0050",null,null,null,null,"Bushanam, Antoinette"]
["Aimable","Byishimo","aimablenkunda01@gmail.com",null,"(319) 202-2573",null,null,null,"Yes"]
["Chantal","Byishimo","hyiramutorutwa@gmail.com",null,"(309) 948-8761",null,null,null,null,"Byishimo, Aimable"]
["Laura","Calderon","laucal123@icloud.com",null,"(949) 344-9805",null,null,null,"Yes"]
["Giselle","Candona-Martinez","homesbygiselle@outlook.com",null,"(505) 270-4197",null,null,null,null,"Martinez, Lawrence"]
["Julia","Cao","julialancao@gmail.com",null,"(832) 874-2286",null,null,null,"Yes"]
["Cherish","Caputo","cherishcaputo@gmail.com",null,"(916) 201-6305",null,null,null,"Yes"]
["Heidi","Carr","hcarr1288@gmail.com",null,"(602) 303-4519",null,null,null,null,"Enderby, Sonia"]
["Mary","Carreon","Maryncarreon@gmail.com",null,"(951) 775-6983",null,null,null,"Yes"]
["Jeff","Carter","jeffcarter@cacginspections.com",null,"(520) 971-1444",null,null,null,"Yes"]
["Josh","Case","oneaboveimports@gmail.com",null,"(806) 433-1215",null,null,null,null,"Case, Sheguina"]
["Sheguina","Case","sheguina@gmail.com",null,"(858) 717-1896",null,null,null,"Yes"]
["Angela","Chance","pinkysforlife@gmail.com",null,"(520) 954-9307",null,null,null,"Yes"]
["Paul","Chance","Dupe Primary",null,"(520) 975-5763",null,null,null,null,"Chance, Angela"]
["Faye","Churchill","golden1.fc@gmail.com",null,"(602) 881-3499",null,null,null,"Yes"]
["Justice","Coffman","juscoffman@gmail.com",null,"(602) 552-5758",null,null,null,"Yes"]
["Heather","Conkin","absissy@hotmail.com",null,"(623) 980-0142",null,null,null,null,"Conklin, Joel"]
["Joel","Conklin","conklin.2010@hotmail.com",null,"(623) 398-9082",null,null,null,"Yes"]
["Gina","Cope","thecopes000@gmail.com",null,"(801) 564-5745",null,null,null,"Yes"]
["LaMar","Cope","epocla@gmail.com",null,"(801) 394-4038",null,null,null,null,"Cope, Gina"]
["Warren","Coppock","lauracoppock14@gmail.com",null,"(623) 308-5406",null,null,null,"Yes"]
["Ricardo","Cordova","mrcordova_2000@yahoo.com",null,"(602) 832-6927",null,null,null,"Yes"]
["Amanda","Cotton","a.d.cotton.84@gmail.com",null,"(602) 688-9293",null,null,null,"Yes"]
["Bradon","Cowley"," ",null,"(208) 240-5701",null,null,null,null,"Cope, Gina"]
["RaNae","Cowley"," ",null,"(208) 240-5775",null,null,null,null,"Cope, Gina"]
["Annette","Dalton","Daltonsales25@gmail.com",null,"(602) 318-6290",null,null,null,"Yes"]
["Ryan","Dalton",null,null,"(602) 318-6421",null,null,null,null,"Dalton, Annette "]
["Lasiyah","Daniel"," ",null,"(480) 252-6503",null,null,null,null,"Phillip, Garna"]
["Amy","Davidson","aimhigh921@gmail.com",null,"(404) 771-9343",null,null,null,"Yes"]
["J","Delaboin","Dupe Primary",null,"(480) 227-9486",null,null,null,null,"Delaboin, Serita"]
["Serita","Delaboin","delegac4work@gmail.com",null,"(480) 227-9486",null,null,null,"Yes"]
["David","Delariva","delarivafam3@gmail.com",null,"(915) 328-1888",null,null,null,"Yes"]
["Tammy","Delariva","Dupe Primary",null,"(915) 888-6155",null,null,null,null,"Delariva, David"]
["Duke","Dent","tdent95@icloud.com",null,"(623) 298-9247",null,null,null,"Yes"]
["Falaya","DeSilva","Falaya@sbcglobal.net",null,"(562) 676-3502",null,null,null,"Yes"]
["Nguyen","Do","andoo3434@gmail.com",null,"(832) 874-2294",null,null,null,null,"Cao, Julia"]
["Sebashan","Dobos","gldobos@gmail.com",null,"(480) 593-4643",null,null,null,"Yes"]
["Chrystal","Ejim","cejim4002@gmail.com",null,"(225) 588-7846",null,null,null,null,"Black, Pamela"]
["Sonia","Enderby","soniazcookin@gmail.com",null,"(480) 320-9002",null,null,null,"Yes"]
["Barbara","Erickson","barbara.erickson4@yahoo.com",null,"(262) 327-8642",null,null,null,"Yes"]
["Lori","Ewing","loriewing-22@gmail.com",null,"(360) 790-6220",null,null,null,null,"Sutherland , Leslie"]
["Mugisha","Fashingoma","mugishafm.mf@gmail.com",null,"(309) 644-2935",null,null,null,"Yes"]
["Debbie","Faunce","dccrossdc@aol.com",null,"(520) 431-1016",null,null,null,"Yes"]
["Brenda","Fisher","mrsfisher@cox.net",null,"(602) 206-4981",null,null,null,"Yes"]
["Nathan","Fisher","nwfisher80@gmail.com",null,null,null,null,null,null,"Fisher, Brenda"]
["Marissa","Flores",null,null,"(480) 310-4834",null,null,null,null,"Proctor, Chrystal "]
["Daniel","Fraijo",null,null,"(602) 826-5206",null,null,null,null,"Silva, Micah"]
["Anthony","Franklin",null,null,"(602) 781-3994",null,null,null,null,"Reed, Drake "]
["Sion","Freestone"," ",null,null,null,null,null,"Yes"]
["Devin","Fremouw","dray71@gmail.com",null,"(602) 694-4112",null,null,null,null,"Benfield, Brittany"]
["Diana","Frey","dianayanetfrey@yahoo.com",null,null,null,null,null,null,"Kirk, Heather"]
["Lorena","Fuentes","lorena_fuentes1210@yahoo.com",null,"(480) 238-6188",null,null,null,null,"Fuentes , Oz "]
["Oz","Fuentes","ozfuentes3.0@gmail.com",null,"(480) 455-7527",null,null,null,"Yes"]
["Edward","Garcia","edwardgarcia22@gmail.com",null,"(602) 565-5210",null,null,null,"Yes"]
["Esther","Garcia","esther.garciam@yahoo.com",null,"(619) 948-6103",null,null,null,"Yes"]
["Sarah","Garcia","sarahgarcia58@gmail.com",null,"(602) 422-4086",null,null,null,null,"Martinez, Denisse"]
["Karen","Garro","blueangelkm@gmail.com",null,"(602) 708-1170",null,null,null,null,"Garro, Yorlenny"]
["Yorlenny","Garro","yorlennygaro@yahoo.com",null,"(623) 256-1987",null,null,null,"Yes"]
["Kaia","Gieszler","k.gieszler02@gmail.com",null,"(720) 556-5624",null,null,null,"Yes"]
["Kelli","Gieszler","k.gieszler73@gmail.com",null,"(303) 898-5218",null,null,null,null,"Gieszler, Kaia"]
["Sara","Gitter","sara.gitter96@gmail.com",null,"(530) 605-5852",null,null,null,"Yes"]
["David","Glennie","hawaiianglennies@aol.com",null,"(480) 815-2904",null,null,null,null,"Glennie, Doreen"]
["Doreen","Glennie","doreenglennie@gmail.com",null,"(480) 438-1383",null,null,null,"Yes"]
["Imelda","Gonzalez","imeldagonzalez777@gmail.com",null,"(602) 756-1158",null,null,null,null,"Justar, Michael Ray"]
["Saral","Gonzalez","saralgonzalez28@yahoo.com",null,"(801) 648-1223",null,null,null,"Yes"]
["Abbey-Gail","Gordon","abbeygailgoron0@gmail.com",null,"(480) 639-9124",null,null,null,"Yes"]
["Genell","Gorman","genell.gorman@gmail.com",null,"(857) 225-6075",null,null,null,"Yes"]
["Dylan","goveia","dylangoveia@gmail.com",null,"(682) 920-4718",null,null,null,"Yes"]
["Miranda","Goveia","msteiher18@gmail.com",null,"(480) 433-4257",null,null,null,null,"goveia, Dylan"]
["Melissa","Grey","mgrey1@me.com",null,"(480) 231-8432",null,null,null,null,"Lackey, Danielle"]
["Michelle","Guevaza","bm.guevaza01@gmail.com",null,"(520) 780-8257",null,null,null,"Yes"]
["Jocelyne","Guzman","jocelyneguzman68@gmail.com",null,"(623) 340-4755",null,null,null,"Yes"]
["Mina","H",null,null,null,null,null,null,null,"Marx, Stetson"]
["Sam","Hall","hsamuel70@yahoo.com",null,"(602) 819-6500",null,null,null,null,"Ward, Alyssa"]
["Valerie","Hall","hhelmt@hotmail.com",null,"(480) 717-9716",null,null,null,"Yes"]
["Caleb","Harkett","chackett444@gmail.com",null,"(602) 376-9270",null,null,null,null,"Roberts, Chloe"]
["Batka","Harris","bkharris1@gmail.com",null,"(224) 857-3866",null,null,null,"Yes"]
["Lori","Harris","lld77@hotmail.com",null,"(219) 588-5153",null,null,null,"Yes"]
["Mary","Henderson","mehend0@hotmail.com",null,"(520) 788-9336",null,null,null,null,"Vasquez, Mary"]
["Robin","Hill","robinmariehill@icloud.com",null,"(208) 568-1490",null,null,null,null,"Hill, Steve"]
["Steve","Hill","hillnest2002@yahoo.com",null,"(208) 568-0468",null,null,null,"Yes"]
["Aaron","Holmes","aaronholmes520@gmail.com",null,"(520) 668-9249",null,null,null,null,"Visser, Shira"]
["Rosalina","Holwell","rosalinaholwell1979@gmail.com",null,"(623) 204-8438",null,null,null,"Yes"]
["Sabrina","Howard","slhoward1122@gmail.com",null,"(580) 341-6672",null,null,null,"Yes"]
["Melissa","Ibarra","jstrelax1022@gmail.com",null,"(520) 560-5452",null,null,null,"Yes"]
["Danny","Imes","dannyimes2013@gmail.com",null,"(480) 275-9609",null,null,null,"Yes"]
["William","Insecue",null,null,null,null,null,null,null,"Dobos, Sebashan"]
["Tom","Jensen","tomandmeljensen@gmail.com",null,"(719) 310-6068",null,null,null,"Yes"]
["Rachel","Jessey","rjjessey45@yahoo.com",null,"(615) 347-8618",null,null,null,"Yes"]
["Jaqueline","Jimenez","JaquelineJimenez07@gmail.com",null,"(480) 600-4881",null,null,null,"Yes"]
["Jose","Jimenez",null,null,"(602) 293-6584",null,null,null,null,"Jimenez, Jaqueline"]
["Charletta","Jones","ruedelamour@yahoo.com",null,"(623) 330-4285",null,null,null,"Yes"]
["Michael Ray","Justar","michaelraypiano3@gmail.com",null,"(602) 810-8247",null,null,null,"Yes"]
["Rachelle","Justimbaste","justrachelle24@gmail.com",null,"(623) 297-5648",null,null,null,"Yes"]
["Pascal","Karuhije","pascaljones256@gmail.com",null,"(480) 799-1623",null,null,null,null,"Watuna, Mercy"]
["Christina","Kathrein","  Tinabuysandsellsaz@gmail.com",null,"(480) 567-5569",null,null,null,null,"McCants, John"]
["Annette","Keaton"," annettekeaton3@gmail.com",null,null,null,null,null,null,"Rodriguez, Tara"]
["Dave","Keller","daveckeller@gmail.com",null,"(480) 797-6475",null,null,null,null,"Van Hoose, Tara"]
["Edna","Kemboi","ekemboi@icloud.com",null,"(573) 355-3185",null,null,null,null,"Kibichii, Bob"]
["Margaret","Kibbett","mbkibbs@gmail.com",null,"(760) 390-4261",null,null,null,"Yes"]
["Bob","Kibichii","bobbykit@gmail.com",null,"(515) 771-3802",null,null,null,"Yes"]
["Peter","Kim Knighton",null,null,"(480) 936-9778",null,null,null,null,"McGriff, Sacoria"]
["Heather","Kirk","HJKirk@juno.com",null,"(480) 549-3609",null,null,null,"Yes"]
["Kristina","Kirkham","krkirkham@hotmail.com",null,"(480) 570-5341",null,null,null,"Yes"]
["Reese","Klebba","doyouknowjesus12@gmail.com",null,"(602) 756-0338",null,null,null,"Yes"]
["Anthony R","Kleinhans","tonyk09@gmail.com",null,"(651) 587-4140",null,null,null,"Yes"]
["Julie","Kleinhans","juliek3687@outlook.com",null,"(612) 558-3687",null,null,null,null,"Kleinhans, Anthony R"]
["Adrienne","Kofka","akaz1970@yahoo.com",null,"(480) 888-5041",null,null,null,"Yes"]
["Alex","Kowalczyk","awkowalczyk09@gmail.com",null,"(920) 288-1072",null,null,null,null,"Olson, Jeremiah"]
["Machelle","Krekowsky","mkret1230@outlook.com",null,"(480) 239-0265",null,null,null,null,"Kretkowsky, Joseph"]
["Joseph","Kretkowsky","jk4617@yahoo.com",null,"(602) 507-1138",null,null,null,"Yes"]
["Lisa","Kron","lkron2018@gmail.com",null,"(480) 305-3832",null,null,null,"Yes"]
["Mason","Kron"," ",null,null,null,null,null,null,"Kron, Lisa"]
["Danielle","Lackey","daniellelackey15@gmail.com",null,"(480) 395-5997",null,null,null,"Yes"]
["Romiyo","Lager","jdlager1999@gmail.com",null,"(602) 600-5529",null,null,null,"Yes"]
["Talia","Laughter","taliaruth@hotmail.com",null,"(928) 614-8880",null,null,null,"Yes"]
["rebekah","Lechuga","Rebekah.lechuga@yahoo.com",null,"(623) 562-7092",null,null,null,"Yes"]
["Stephen","Lindstrom",null,null,"(602) 908-8476",null,null,null,null,"Kirkham, Kristina"]
["Jasmine","Lockhart","juscoffman@gmail.com",null,null,null,null,null,null,"Coffman, Justice"]
["Jason","Louis","N/A",null,"(623) 707-7441",null,null,null,null,"Muniz, Marcella"]
["Aiden","Lumv","aidenlumv2026@gmail.com",null,"(323) 529-3173",null,null,null,"Yes"]
["Dawn","Marko","dawnleighmarko@gmail.com",null,"(480) 241-1876",null,null,null,"Yes"]
["Denisse","Martinez","dmparalegalservice@gmail.com",null,"(602) 763-6149",null,null,null,"Yes"]
["Lawrence","Martinez","mystuff1125@gmail.com",null,"(505) 934-6779",null,null,null,"Yes"]
["Stetson","Marx","stetsonmarx51@gmail.com",null,"(602) 692-6273",null,null,null,"Yes"]
["Latanya","Mathis","N/A",null,null,null,null,null,null,"Harris , Lori "]
["John","McCants","swbdgllc@gmail.com",null,"(206) 719-0804",null,null,null,"Yes"]
["Pam","McCants"," 1diva1822@gmail.com",null,"(602) 769-1501",null,null,null,null,"McCants, John"]
["Sacoria","McGriff","SacoriaMcgriff@gmail.com",null,"(480) 532-5945",null,null,null,"Yes"]
["Bianca","McLachlan","bianca.mclachlan95@gmail.com",null,"(928) 242-2266",null,null,null,"Yes"]
["Kenneth","McNair",null,null,null,null,null,null,null,"Phillip, Garna"]
["Cyndi","Melden","tcmelden@gmail.com",null,"(760) 521-3208",null,null,null,"Yes"]
["Silvia","Milliano","smilliano15@gmail.com",null,"(623) 256-9398",null,null,null,"Yes"]
["Christopher","Molander","christopher.molander@cbrealty.com",null,"(520) 345-4281",null,null,null,"Yes"]
["Jason","Molander","jasonsvw@gmail.com",null,"(641) 903-0389",null,null,null,null,"Molander, Christopher"]
["Sundae","Moncrief"," sundaespeaks@gmail.com",null,"(480) 363-4002",null,null,null,null,"Anderson, Phyllis"]
["Rebecca","Mora","info@gutgal.com",null,"(619) 400-3003",null,null,null,"Yes"]
["Alexa","Morales","alexaanahi99@gmail.com",null,"(602) 489-1810",null,null,null,"Yes"]
["Richard","Morales","Rmorales3677@gmail.com",null,"(480) 793-3198",null,null,null,"Yes"]
["Tina","Morales","tinamarie6161@icloud.com",null,"(831) 400-6161",null,null,null,null,"Morales, Richard"]
["Peter","Muhumuza","pmuhumuza5@gmail.com",null,"(747) 287-8621",null,null,null,"Yes"]
["Marcella","Muniz","mgajmarcella1@gmail.com",null,"(616) 427-4663",null,null,null,"Yes"]
["Anna","Murdock","ButterflyGirl24@mac.com",null,"(602) 292-0728",null,null,null,null,"Brown, Brooke"]
["Immaculate","Namuddu Mulungi","immiesekamwa@gmail.com",null,"(781) 584-0758",null,null,null,"Yes"]
["Judith","Namutebi","jude77247@gmail.com",null,"(256) 772-4796",null,null,null,null,"Namuddu Mulungi, Immaculate"]
["Grace","Nanozi","gracenano26@yahoo.com",null,"(346) 365-9918",null,null,null,"Yes"]
["Queenie","Navarro","qnavarro@asu.edu",null,"(623) 241-3241",null,null,null,"Yes"]
["Deborah","Nelson","deborahnelson@cox.net",null,"(402) 651-3635",null,null,null,"Yes"]
["Narrae","Nelson","Narrae_nelson@aol.com",null,"(602) 586-8541",null,null,null,null,"Howard, Sabrina"]
["Tina","Nguyen","tinalove986@gmail.com",null,"(623) 241-3241",null,null,null,null,"Navarro, Queenie"]
["Megan","Nichols-Ramos","megannicholsramos@gmail.com",null,"(419) 891-2297",null,null,null,"Yes"]
["Joshua","Norman","blgjnorm@gmail.com",null,"(310) 590-0766",null,null,null,null,"DeSilva, Falaya"]
["Faustin","Ntabareshya",null,null,"(309) 756-7760",null,null,null,null,"Fashingoma, Mugisha"]
["Elyonna","Nunez","jucowrestling@gmail.com",null,"(602) 670-4759",null,null,null,null,"Nunez, Mickey"]
["Mickey","Nunez","mickanddonna@msn.com",null,"(480) 212-3569",null,null,null,"Yes"]
["Ray","Nunez","tmtstudios@yahoo.com",null,"(602) 736-7198",null,null,null,null,"Nunez, Mickey"]
["Srleil","Nyinawumwami"," srleilnyinawumwami@gmail.com",null,"(309) 558-8340",null,null,null,null,"Fashingoma, Mugisha"]
["Karen","O''Neal","karenfromcalvary@coxinet.com",null,"(623) 203-7567",null,null,null,"Yes"]
["Jeremiah","Olson","jeremiaholson15@outlook.com",null,"(720) 297-2843",null,null,null,"Yes"]
["Paul","Ottavio","potta723@gmail.com",null,"(623) 329-5617",null,null,null,null,"Conklin, Joel"]
["Genet","Patterson","genetpatterson@gmail.com",null,"(520) 239-6078",null,null,null,"Yes"]
["Meseret","Patterson","meseretpatterson@gmail.com",null,"(520) 232-4845",null,null,null,null,"Patterson, Genet"]
["Rebeca","Payan","rebeca.payan@icloud.com ",null,"(602) 596-8652",null,null,null,null,"Jimenez, Jaqueline"]
["Sean","Pena","seanpena7@gmail.com",null,"(602) 910-9722",null,null,null,"Yes"]
["Taylor","Pena","taylorop10@gmail.com",null,"(602) 663-5126",null,null,null,null,"Pena, Sean"]
["Hagos","Petro","hagospetro18@gmail.com",null,"(480) 285-9285",null,null,null,null,"Lager, Romiyo"]
["Garna","Phillip","garnamp@gmail.com",null,"(813) 315-5698",null,null,null,"Yes"]
["Jeff","Plish",null,null,null,null,null,null,null,"Holwell, Rosalina"]
["Carlos","Ponce","poncecarlosd@gmail.com",null,"(385) 389-0298",null,null,null,null,"Gonzalez, Saral"]
["Luis","Portillo","luisportillo2623@gmail.com",null,"(602) 697-2557",null,null,null,null,"Morales, Alexa"]
["Keli","Price","keli.m.price@gmail.com",null,"(602) 642-7207",null,null,null,"Yes"]
["Chrystal","Proctor","Proctorchrystal7@gmail.com",null,"(480) 529-6649",null,null,null,"Yes"]
["Bill","Prosser","billprosser@cox.net",null,"(602) 708-4109",null,null,null,null,"Prosser, Robyn"]
["Robyn","Prosser","talktorv@aol.com",null,"(480) 330-9927",null,null,null,"Yes"]
["Jocelyn","Ramey","jdramey7412@gmail.com",null,"(602) 499-6523",null,null,null,"Yes"]
["Luis","Ramos","luisdearco2012@gmail.com",null,"(513) 227-9972",null,null,null,null,"Nichols-Ramos , Megan"]
["Suresh","Ravori",null,null,"(602) 621-5029",null,null,null,"Yes"]
["Drake","Reed","Coachreed@myyahoo.com",null,"(623) 249-0390",null,null,null,"Yes"]
["Chloe","Roberts","cocorob8@gmail.com",null,"(541) 868-6008",null,null,null,"Yes"]
["Joshua","Robertson","librarypanda89@gmail.com",null,"(720) 609-9003",null,null,null,"Yes"]
["Josh","Rodgeis","kingjosh21@gmail.com",null,"(602) 550-8121",null,null,null,null,"Churchill, Faye"]
["Tara","Rodriguez","trod1191@gmail.com",null,"(602) 247-1504",null,null,null,"Yes"]
["Barbara","Rogers","youngbarb4@gmail.com",null,"(323) 362-7869",null,null,null,"Yes"]
["Michelle","Rose","Specialmtk@hotmail.com",null,"(774) 296-5765",null,null,null,"Yes"]
["Angela","Rummel","andela_r@yahoo.com",null,"(713) 542-7396",null,null,null,"Yes"]
["Gaven","Rummel","grenadecatcher20@gmail.com",null,"(281) 323-2272",null,null,null,"Yes"]
["Alexandrea","Saiz","Asaizphp@gmail.com",null,"(505) 358-8018",null,null,null,"Yes"]
["Divina","Salaver","chillsalaver28@gmail.com",null,"(480) 278-1640",null,null,null,"Yes"]
["Sam","Sbai","wisamsbai@gmail.com",null,"(480) 313-7144",null,null,null,null,"Aguilar, Mary Jane"]
["Tonya","Schulte","iwriteforfun@gmail.com",null,"(928) 499-4798",null,null,null,"Yes"]
["Tina","Scott","tina.scott201542@gmail.com",null,"(207) 745-3766",null,null,null,"Yes"]
["Essence","Sendjaja","essenceguthriesmiles@gmail.com",null,"(602) 486-0064",null,null,null,null,"Patterson, Genet"]
["Lindsay","Seymour","queenzaybooking@gmail.com",null,"(602) 793-0757",null,null,null,null,"Jones, Charletta"]
["Neal","Sheffield","gage_iv@yahoo.com",null,"(713) 705-8467",null,null,null,null,"Rummel , Gaven "]
["Maria","Shega","msimon0722@gmail.com",null,"(623) 282-8077",null,null,null,null,"Lager, Romiyo"]
["Micah","Silva","mjsilva81@gmail.com",null,"(520) 490-7667",null,null,null,"Yes"]
["Gretchen","Slaughter","gretchen@foxtail-group.com",null,"(520) 483-6054",null,null,null,"Yes"]
["Merlen","Slaughter","merlen35@icloud.com",null,"(520) 560-1306",null,null,null,null,"Slaughter, Gretchen"]
["Renee","Sotleo"," ",null,"(505) 358-8018",null,null,null,null,"Saiz, Alexandrea"]
["Dom","Ssenyonjo"," ",null,"(646) 954-1791",null,null,null,null,"Namuddu Mulungi, Immaculate"]
["Jaelah","Stanley","jaelahstanley@icloud.com",null,"(480) 494-3919",null,null,null,null,"Bledsae, Roberta"]
["Dan","Sudnick","my1960snow@q.com",null,"(520) 610-1269",null,null,null,null,"Sudnick , Jeanine "]
["Jeanine","Sudnick","j9sudz@yahoo.com",null,"(520) 610-8301",null,null,null,"Yes"]
["Leslie","Sutherland","jump4joynaturally@gmail.com",null,"(303) 366-8558",null,null,null,"Yes"]
["Christine","Temple-Wolfe","templewolf@yahoo.com",null,"(925) 876-7191",null,null,null,"Yes"]
["Dan","Thomas","Dupe Primary",null,"(505) 419-6858",null,null,null,null,"Thomas, Tammy"]
["Tammy","Thomas","tooneytammy@gmail.com",null,"(505) 320-7368",null,null,null,"Yes"]
["Elizabeth","Thompson","thompsonliz13@gmail.com",null,"(480) 848-0590",null,null,null,"Yes"]
["Korbin","Thompson","thompsonkorbin@gmail.com",null,"(480) 848-0590",null,null,null,null,"Thompson, Elizabeth"]
["Gabriel","Torres","gbeantorres@gmail.com",null,"(602) 881-1477",null,null,null,"Yes"]
["Katie","Torres","kt3torres@gmail.com",null,"(602) 380-3519",null,null,null,null,"Torres, Gabriel"]
["Korbin","Torres"," ",null,null,null,null,null,null,"Torres, Gabriel"]
["Korbin","Torres"," ",null,null,null,null,null,null,"Torres, Gabriel"]
["Payson","Treguboff","paysontreguboff@gmail.com",null,"(623) 640-6576",null,null,null,null,"Ward, Alyssa"]
["Lannette","Turner","lmcole08@yahoo.com",null,"(602) 800-1911",null,null,null,null,"Garcia, Esther"]
["Alvin","Twett","atwett24@yahoo.com",null,null,null,null,null,null,"Twett, Gerard"]
["Gerard","Twett","gerard.twett@gmail.com",null,"(480) 450-1448",null,null,null,"Yes"]
["Brian","Ultsch","brianultsch@yahoo.com",null,"(480) 939-1173",null,null,null,null,"Ultsch, Wendy"]
["Wendy","Ultsch","mrsultsch@yahoo.com",null,"(480) 643-0786",null,null,null,"Yes"]
["Aniema","Umoh","annieumoh@yahoo.com",null,"(310) 467-7434",null,null,null,null,"DeSilva, Falaya"]
["Dennis","Valdez","ddivad2009@gmail.com",null,"(571) 502-2447",null,null,null,"Yes"]
["Rizah","Valdez",null,null,null,null,null,null,null,"Valdez, Dennis"]
["Tara","Van Hoose","taravh6@gmail.com",null,"(480) 789-0696",null,null,null,"Yes"]
["Mary","Vasquez","mary_mason5115@yahoo.com",null,"(520) 788-4226",null,null,null,"Yes"]
["Zerin","Vazquez",null,null,null,null,null,null,"Yes"]
["Shira","Visser","shira.visser@yahoo.com",null,"(520) 994-9124",null,null,null,"Yes"]
["Susan","Wahlers","makersofcare@gmail.com",null,"(480) 217-6488",null,null,null,"Yes"]
["Julie","Walter","tdubgrl@gmail.com",null,"(480) 634-0342",null,null,null,null,"Walter, Tyler"]
["Rebecca","Walter","r.wltr44@gmail.com",null,"(520) 499-7532",null,null,null,"Yes"]
["Tyler","Walter","waltertyler44@gmail.com",null,"(480) 270-9050",null,null,null,"Yes"]
["Alyssa","Ward","alyssaawardd28@gmail.com",null,"(602) 399-4626",null,null,null,"Yes"]
["JD","Watson","jdwatson.agency@gmail.com",null,"(480) 661-7200",null,null,null,"Yes"]
["Mercy","Watuna","mercywatuna@gmail.com",null,"(602) 831-8870",null,null,null,"Yes"]
["Melissa","Wheeler","mwjeweles@gmail.com",null,"(321) 287-6199",null,null,null,"Yes"]
["Jennifer","Whitney","jjwhit@gmail.com",null,"(435) 770-7935",null,null,null,"Yes"]
["Kathryn","Whittington","currankc02@me.com",null,"(480) 421-8271",null,null,null,"Yes"]
["Haley","Wieler","hwieler18@gmail.com",null,"(480) 469-8718",null,null,null,"Yes"]
["Nathan","Wieler","nbwieler18@gmail.com",null,"(480) 376-6491",null,null,null,null,"Wieler, Haley"]
["Angela","Williams","williamsangela2007@gmail.com",null,"(574) 875-7189",null,null,null,"Yes"]
["Brant","Williams","williamsbrant@yahoo.com",null,"(574) 333-6639",null,null,null,null,"Williams, Angela"]
["Nicholas","Winchester","nicholaswinchester07@gmail.com",null,"(779) 260-9749",null,null,null,"Yes"]
["Richard","Wolfe","richiwolfe65@gmail.com",null,"(925) 639-4466",null,null,null,null,"Temple-Wolfe, Christine"]
["Flor","Wolff","larwolff@gmail.com",null,"(480) 478-5673",null,null,null,null,"Wolff, Larry"]
["Larry","Wolff","elizabeth_cabezos@hotmail.com",null,null,null,null,null,"Yes"]
["Andrew","Wood","andrewwoodride@gmail.com",null,"(541) 232-6896",null,null,null,null,"Wood, James"]
["James","Wood","jrwoodnz@yahoo.com",null,"(808) 333-4451",null,null,null,"Yes"]
["Jaylene","Woodruff","jaybreck199@gmail.com",null,"(951) 428-8220",null,null,null,null,"Woodruff, Shon"]
["Shon","Woodruff","shon.woodruff.sw@gmail.com",null,"(951) 428-8230",null,null,null,"Yes"]
["Kaylee","Wright"," ",null,null,null,null,null,"Yes"]
["Kaylee","Wright","kwrightnum@gmail.com ",null,"(602) 350-2450",null,null,null,null,"Klebba, Reese"]
["Mike","Zahn","mikezahnaz@gmail.com",null,"(620) 226-8111",null,null,null,"Yes"]
["Trisha","Zahn","No",null,null,null,null,null,null,"Zahn, Mike"]
["Sterling","Zayas","sterlingzayas@gmail.com",null,"(480) 647-9966",null,null,null,"Yes"]
["Faith","Zralka","N/A",null,"(858) 997-4770",null,null,null,null,"Hill, Steve"]

{"sheet":"Printable Sign-In Sheet","index":7,"n_rows":35,"n_cols":7,"rows_kept":35,"cut":false,"hidden":false,"merged":[]}
["First","Last","Email","Phone","Day 1","Day 2","Day 3"]
["Mariah","Armenta","mariah.armenta0352@gmail.com","(602) 710-8006"]
["Kari","Baker","karibaker2023@gmail.com","(602) 740-4483"]
["Monica","Bodoh","monicamarie1234@icloud.com","(608) 385-0968"]
["Brooke","Brown","thebutterflytouch@gmail.com","(480) 628-8540"]
["Celeste","Bryson","celestehbryson@yahoo.com","(302) 753-1259"]
["Michael","Bryson","mikenbryson@yahoo.com","(302) 373-8904"]
["Antoinette","Bushanam","nbrblincoln@gmail.com","(480) 258-0052"]
["Giselle","Candona-Martinez","homesbygiselle@outlook.com","(505) 270-4197"]
["Faye","Churchill","golden1.fc@gmail.com","(602) 881-3499"]
["Heather","Conkin","absissy@hotmail.com","(623) 980-0142"]
["Joel","Conklin","conklin.2010@hotmail.com","(623) 398-9082"]
["Annette ","Dalton","Daltonsales25@gmail.com","(602) 318-6290"]
["Duke","Dent","tdent95@icloud.com","(623) 298-9247"]
["Yorlenny","Garro","yorlennygaro@yahoo.com","(623) 256-1987"]
["Melissa","Grey","mgrey1@me.com","(480) 231-8432"]
["Robin","Hill","robinmariehill@icloud.com","(208) 568-1490"]
["Sabrina","Howard","slhoward1122@gmail.com","(580) 341-6672"]
["Rachel","Jessey","rjjessey45@yahoo.com","(615) 347-8618"]
["Charletta","Jones","ruedelamour@yahoo.com","(623) 330-4285"]
["Michael Ray","Justar","michaelraypiano3@gmail.com","(602) 810-8247"]
["Rachelle","Justimbaste","justrachelle24@gmail.com","(623) 297-5648"]
["Dave","Keller","daveckeller@gmail.com","(480) 797-6475"]
["Anthony R","Kleinhans","tonyk09@gmail.com","(651) 587-4140"]
["Julie","Kleinhans","juliek3687@outlook.com","(612) 558-3687"]
["Lisa","Kron","lkron2018@gmail.com","(480) 305-3832"]
["Danielle","Lackey","daniellelackey15@gmail.com","(480) 395-5997"]
["Lawrence","Martinez","mystuff1125@gmail.com","(505) 934-6779"]
["Stetson","Marx","stetsonmarx51@gmail.com","(602) 692-6273"]
["Anna","Murdock","ButterflyGirl24@mac.com","(602) 292-0728"]
["Elyonna","Nunez","jucowrestling@gmail.com","(602) 670-4759"]
["Mickey","Nunez","mickanddonna@msn.com","(480) 212-3569"]
["Garna","Phillip","garnamp@gmail.com","(813) 315-5698"]
["Joshua","Robertson","librarypanda89@gmail.com","(720) 609-9003"]
["Tara","Rodriguez","trod1191@gmail.com","(602) 247-1504"]

{"sheet":"Confirmed Name Tags","index":8,"n_rows":35,"n_cols":2,"rows_kept":35,"cut":false,"hidden":false,"merged":[]}
["First Name","Last Name"]
["Mariah","Armenta"]
["Kari","Baker"]
["Monica","Bodoh"]
["Brooke","Brown"]
["Celeste","Bryson"]
["Michael","Bryson"]
["Antoinette","Bushanam"]
["Giselle","Candona-Martinez"]
["Faye","Churchill"]
["Heather","Conkin"]
["Joel","Conklin"]
["Annette ","Dalton"]
["Duke","Dent"]
["Yorlenny","Garro"]
["Melissa","Grey"]
["Robin","Hill"]
["Sabrina","Howard"]
["Rachel","Jessey"]
["Charletta","Jones"]
["Michael Ray","Justar"]
["Rachelle","Justimbaste"]
["Dave","Keller"]
["Anthony R","Kleinhans"]
["Julie","Kleinhans"]
["Lisa","Kron"]
["Danielle","Lackey"]
["Lawrence","Martinez"]
["Stetson","Marx"]
["Anna","Murdock"]
["Elyonna","Nunez"]
["Mickey","Nunez"]
["Garna","Phillip"]
["Joshua","Robertson"]
["Tara","Rodriguez"]